bitfinex/quotes_BTCUSD_20251226
["timestamp","ask_amount","ask_price","bid_price","bid_amount"]
[1766726135478,0.01124568,88923.0,88913.0,0.01134779]
[1766726136113,0.01124568,88923.0,88913.0,0.00010085]
[1766726136517,0.01124581,88922.0,88913.0,0.00010085]
[1766726136715,0.01124568,88923.0,88913.0,0.00010085]
[1766726137068,0.01124606,88920.0,88913.0,0.00010085]
[1766726137420,0.01124593,88921.0,88913.0,0.00010085]
[1766726137618,0.01124555,88924.0,88913.0,0.01134779]
[1766726137819,0.01124555,88924.0,88914.0,0.01124682]
[1766726138027,0.01124555,88924.0,88914.0,0.14409682]
[1766726138435,0.01124555,88924.0,88914.0,0.13285]
[1766726138859,0.01124555,88924.0,88914.0,0.14409682]
[1766726139417,0.01124568,88923.0,88914.0,0.13285]
[1766726139552,0.01124555,88924.0,88914.0,0.13285]
[1766726140153,0.01124555,88924.0,88914.0,0.14409682]
[1766726140528,0.01124568,88923.0,88914.0,0.13285]
[1766726141455,0.01124555,88924.0,88914.0,0.14409682]
[1766726141787,0.01124568,88923.0,88914.0,0.13285]
[1766726142758,0.01124581,88922.0,88914.0,0.13285]
[1766726143355,0.01124568,88923.0,88914.0,0.13285]
[1766726143781,0.01124581,88922.0,88914.0,0.13285]
[1766726144755,0.01124555,88924.0,88914.0,0.13285]
[1766726145223,0.01124568,88923.0,88914.0,0.14409682]
[1766726145408,0.01128,88928.0,88924.0,0.23789]
[1766726145613,8.2e-07,88925.0,88924.0,0.23789]
[1766726145824,0.01124492,88929.0,88924.0,0.23789]
[1766726145825,0.01128082,88927.0,88924.0,0.23789]
[1766726146060,8.2e-07,88926.0,88924.0,0.23789]
[1766726154242,8.2e-07,88926.0,88924.0,0.23734]
[1766726156524,8.2e-07,88926.0,88918.0,0.27332631]
[1766726157059,8.2e-07,88926.0,88919.0,0.01124619]
[1766726157257,8.2e-07,88926.0,88919.0,0.26208]
[1766726159199,0.01124612,88926.0,88919.0,0.26208]
[1766726159366,0.01124543,88925.0,88919.0,0.26208]
[1766726159586,0.01124581,88922.0,88919.0,0.26208]
[1766726160004,0.01124581,88922.0,88913.0,0.00010085]
[1766726160005,0.01124606,88920.0,88913.0,0.26218085]
[1766726160203,0.01124593,88921.0,88913.0,0.00010085]
[1766726160204,0.01124631,88918.0,88913.0,0.00010085]
[1766726160455,0.01124656,88916.0,88913.0,0.00010085]
[1766726160805,0.01124669,88915.0,88901.0,0.01124846]
[1766726160977,0.01355082,88909.0,88901.0,0.27332846]
[1766726161131,0.01300182,88909.0,88903.0,0.27332821]
[1766726161334,0.01124682,88914.0,88903.0,0.27332821]
[1766726161536,8.868e-05,88915.0,88914.0,0.00055]
[1766726162145,8.868e-05,88915.0,88908.0,0.27332758]
[1766726162341,8.868e-05,88915.0,88908.0,0.26208]
[1766726163439,0.01133537,88915.0,88908.0,0.26208]
[1766726163624,0.01124682,88914.0,88908.0,0.26208]
[1766726163784,0.01124694,88913.0,88908.0,0.26208]
[1766726164292,8.868e-05,88915.0,88908.0,0.26208]
[1766726164713,0.01133537,88915.0,88908.0,0.26208]
[1766726165430,8.868e-05,88915.0,88908.0,0.26208]
[1766726167652,8.868e-05,88915.0,88908.0,0.27332758]
[1766726167855,8.868e-05,88915.0,88908.0,0.26208]
[1766726168261,8.868e-05,88915.0,88908.0,0.27332758]
[1766726168854,8.868e-05,88915.0,88909.0,0.01124745]
[1766726169251,8.868e-05,88915.0,88908.0,0.27332758]
[1766726169755,0.01128,88916.0,88915.0,8.8e-05]
[1766726170153,0.01128,88916.0,88910.0,0.26208]
[1766726171174,0.01124619,88919.0,88910.0,0.26208]
[1766726171315,0.01128,88918.0,88910.0,0.27332732]
[1766726171521,0.01128,88918.0,88910.0,0.26208]
[1766726172151,0.01128,88918.0,88910.0,0.27332732]
[1766726172353,0.02252631,88918.0,88910.0,0.26208]
[1766726172582,0.01128,88918.0,88910.0,0.26208]
[1766726173103,0.02252631,88918.0,88910.0,0.26208]
[1766726173991,0.01128,88918.0,88910.0,0.26208]
[1766726174191,0.02252631,88918.0,88910.0,0.26208]
[1766726174390,0.01124644,88917.0,88910.0,0.26208]
[1766726174822,0.02252631,88918.0,88910.0,0.26208]
[1766726175196,0.01128,88918.0,88910.0,0.26208]
[1766726175537,0.01128,88918.0,88910.0,0.27332732]
[1766726176015,0.01128,88918.0,88910.0,0.26208]
[1766726176277,0.01128,88918.0,88910.0,0.27332732]
[1766726176468,0.01128,88918.0,88912.0,0.01124707]
[1766726176637,0.01128,88918.0,88910.0,0.26208]
[1766726177041,0.01128,88918.0,88912.0,0.01124707]
[1766726177459,0.01128,88918.0,88913.0,0.01124694]
[1766726178255,0.01128,88918.0,88914.0,0.01124682]
[1766726178637,0.01128,88918.0,88913.0,0.01124694]
[1766726180402,0.01128,88918.0,88913.0,0.30601694]
[1766726180885,0.01128,88918.0,88913.0,0.29477]
[1766726181674,0.01128,88918.0,88913.0,0.30601694]
[1766726182093,0.01128,88918.0,88913.0,0.29477]
[1766726182918,0.01128,88918.0,88913.0,0.30601694]
[1766726183116,0.01128,88918.0,88915.0,0.01124669]
[1766726183999,0.01124517,88927.0,88918.0,0.00055]
[1766726184118,0.01128,88926.0,88920.0,0.29477]
[1766726184557,0.0225253,88926.0,88920.0,0.29477]
[1766726185101,0.01128,88926.0,88920.0,0.29477]
[1766726189412,0.0225253,88926.0,88920.0,0.29477]
[1766726189745,0.01128,88926.0,88920.0,0.29477]
[1766726190798,0.01128,88926.0,88920.0,0.30601606]
[1766726191126,0.01128,88926.0,88920.0,0.29477]
[1766726191916,0.0225253,88926.0,88920.0,0.29477]
[1766726192236,0.0225253,88926.0,88920.0,0.294221]
[1766726192990,0.01128,88926.0,88920.0,0.294221]
[1766726193226,0.01128,88926.0,88917.0,0.01124644]
[1766726193625,0.0225253,88926.0,88916.0,0.01124656]
[1766726193875,0.0225253,88926.0,88917.0,0.01124644]
[1766726194016,0.01128,88926.0,88918.0,0.01124631]
[1766726194340,0.01128,88926.0,88917.0,0.01124644]
[1766726195005,0.0225253,88926.0,88916.0,0.01124656]
[1766726195404,0.0225253,88926.0,88916.0,0.35999656]
[1766726196347,0.0225253,88926.0,88916.0,0.34875]
[1766726196535,0.01128,88926.0,88917.0,0.01124644]
[1766726196735,0.01128,88926.0,88918.0,0.01124631]
[1766726197068,0.01128,88926.0,88917.0,0.01124644]
[1766726197277,0.0225253,88926.0,88916.0,0.35999656]
[1766726198259,0.01128,88926.0,88917.0,0.01124644]
[1766726198438,0.01124543,88925.0,88916.0,0.34875]
[1766726199019,0.0225253,88926.0,88916.0,0.34875]
[1766726199020,0.01128,88926.0,88917.0,0.01124644]
[1766726199777,0.01128,88926.0,88918.0,0.01124631]
[1766726200013,0.01128,88926.0,88917.0,0.01124644]
[1766726200213,0.0225253,88926.0,88916.0,0.35999656]
[1766726200415,0.01124543,88925.0,88916.0,0.35999656]
[1766726200577,0.01124543,88925.0,88916.0,0.34875]
[1766726200781,0.0225253,88926.0,88916.0,0.35999656]
[1766726201221,0.01124543,88925.0,88916.0,0.34875]
[1766726201546,0.01128,88926.0,88916.0,0.35999656]
[1766726202349,0.01128,88926.0,88917.0,0.01124644]
[1766726202547,0.0225253,88926.0,88917.0,0.01124644]
[1766726202701,0.0225253,88926.0,88916.0,0.35999656]
[1766726203094,0.0225253,88926.0,88917.0,0.01124644]
[1766726203398,0.0225253,88926.0,88916.0,0.35999656]
[1766726203602,0.0225253,88926.0,88917.0,0.01124644]
[1766726203799,0.01128,88926.0,88917.0,0.01124644]
[1766726204416,0.0225253,88926.0,88917.0,0.01124644]
[1766726204641,0.0225253,88926.0,88916.0,0.35999656]
[1766726205031,0.01124543,88925.0,88916.0,0.34875]
[1766726205402,0.01124555,88924.0,88916.0,0.34875]
[1766726206154,0.01124543,88925.0,88916.0,0.34875]
[1766726206352,0.01124555,88924.0,88916.0,0.34875]
[1766726207010,0.01124543,88925.0,88916.0,0.34875]
[1766726207642,0.01124555,88924.0,88916.0,0.34875]
[1766726207845,0.01124543,88925.0,88916.0,0.34875]
[1766726208567,0.01124543,88925.0,88916.0,0.35999656]
[1766726208746,0.01124543,88925.0,88916.0,0.34875]
[1766726208946,0.01124555,88924.0,88916.0,0.34875]
[1766726209431,0.01124568,88923.0,88916.0,0.34875]
[1766726209874,0.01124555,88924.0,88916.0,0.34875]
[1766726210512,0.01124543,88925.0,88916.0,0.34875]
[1766726211333,0.01124543,88925.0,88916.0,0.35999656]
[1766726211772,0.01124543,88925.0,88916.0,0.34875]
[1766726211974,0.0225253,88926.0,88916.0,0.34875]
[1766726212174,0.0225253,88926.0,88916.0,0.35999656]
[1766726212357,0.01124543,88925.0,88916.0,0.34875]
[1766726213274,0.01124543,88925.0,88916.0,0.35999656]
[1766726214062,0.01124543,88925.0,88916.0,0.34875]
[1766726215415,0.01124543,88925.0,88916.0,0.35999656]
[1766726215628,0.01124543,88925.0,88916.0,0.34875]
[1766726215831,0.0225253,88926.0,88916.0,0.35999656]
[1766726217320,0.01124543,88925.0,88916.0,0.34875]
[1766726218688,0.01124543,88925.0,88916.0,0.35999656]
[1766726218874,0.01124543,88925.0,88916.0,0.34875]
[1766726219286,0.0225253,88926.0,88916.0,0.34875]
[1766726219287,0.0225253,88926.0,88916.0,0.35999656]
[1766726219723,0.01124543,88925.0,88916.0,0.35999656]
[1766726220007,0.01124543,88925.0,88916.0,0.34875]
[1766726220265,0.0225253,88926.0,88916.0,0.35999656]
[1766726220498,0.0225253,88926.0,88916.0,0.34875]
[1766726220661,0.01124555,88924.0,88916.0,0.34875]
[1766726220987,0.01124543,88925.0,88916.0,0.35999656]
[1766726221144,0.01124656,88916.0,88907.0,0.37651]
[1766726221487,0.01124656,88916.0,88874.0,0.45007227]
[1766726221488,0.01124758,88908.0,88900.0,0.36523]
[1766726221696,0.01124758,88908.0,88900.0,0.36558897]
[1766726221848,0.0112477,88907.0,88900.0,0.36558897]
[1766726222044,0.01124758,88908.0,88900.0,0.36558897]
[1766726222253,0.03039039,88929.0,88900.0,0.36558897]
[1766726222254,0.02479764,88914.0,88900.0,0.36558897]
[1766726222487,0.01124745,88909.0,88900.0,0.36558897]
[1766726222917,0.01124732,88910.0,88900.0,0.36558897]
[1766726223087,0.01124732,88910.0,88900.0,0.37683756]
[1766726223293,0.01124745,88909.0,88900.0,0.36558897]
[1766726223807,0.0112477,88907.0,88900.0,0.36558897]
[1766726224011,0.01124758,88908.0,88900.0,0.36558897]
[1766726225410,0.0112477,88907.0,88900.0,0.36558897]
[1766726226189,0.01124821,88903.0,88900.0,0.36558897]
[1766726226366,0.06749045,88902.0,88896.0,0.0002445]
[1766726226600,0.01124846,88901.0,88896.0,0.0002445]
[1766726227116,0.00035898,88902.0,88901.0,0.000549]
[1766726227297,0.00035898,88902.0,88896.0,0.0002445]
[1766726227298,0.00035898,88902.0,88896.0,0.3654745]
[1766726227470,9.8e-07,88902.0,88896.0,0.3654745]
[1766726227874,9.8e-07,88902.0,88896.0,0.3767236]
[1766726228067,9.8e-07,88902.0,88896.0,0.36523]
[1766726230081,0.01124932,88902.0,88896.0,0.36523]
[1766726230284,0.01124859,88900.0,88896.0,0.36523]
[1766726230486,9.8e-07,88902.0,88896.0,0.36523]
[1766726231131,0.01124932,88902.0,88896.0,0.36523]
[1766726232179,9.8e-07,88902.0,88896.0,0.36523]
[1766726233396,9.8e-07,88902.0,88896.0,0.3654745]
[1766726233700,9.8e-07,88902.0,88896.0,0.3767236]
[1766726234311,9.8e-07,88902.0,88896.0,0.3654745]
[1766726234715,9.8e-07,88902.0,88896.0,0.3767236]
[1766726234920,9.8e-07,88902.0,88896.0,0.3654745]
[1766726235147,9.8e-07,88902.0,88896.0,0.3767236]
[1766726235753,9.8e-07,88902.0,88897.0,0.39205897]
[1766726235929,9.8e-07,88902.0,88897.0,0.38081]
[1766726236072,9.8e-07,88902.0,88897.0,0.39205897]
[1766726237469,9.8e-07,88902.0,88897.0,0.38081]
[1766726239655,9.8e-07,88902.0,88897.0,0.39205897]
[1766726239836,9.8e-07,88902.0,88897.0,0.38081]
[1766726244673,9.8e-07,88902.0,88897.0,0.39205897]
[1766726245157,9.8e-07,88902.0,88897.0,0.38081]
[1766726247014,0.01124932,88902.0,88897.0,0.38081]
[1766726247433,0.01124932,88902.0,88896.0,0.0002445]
[1766726249426,0.01124846,88901.0,88896.0,0.0002445]
[1766726250497,0.01124932,88902.0,88896.0,0.0002445]
[1766726250701,9.8e-07,88902.0,88896.0,0.0002445]
[1766726250913,9.8e-07,88902.0,88898.0,0.05624405]
[1766726251097,0.01128,88905.0,88902.0,0.00109802]
[1766726251302,0.01128,88905.0,88902.0,0.0011867]
[1766726251605,0.01128,88905.0,88897.0,0.43705475]
[1766726251606,0.01124796,88905.0,88897.0,0.38081]
[1766726251811,0.01124796,88905.0,88891.0,0.38081]
[1766726251812,0.01124872,88899.0,88891.0,0.38081]
[1766726252006,0.01124872,88899.0,88897.0,0.01128]
[1766726252206,0.08104237,88900.0,88897.0,0.01128]
[1766726253098,0.08104237,88900.0,88891.0,0.38081]
[1766726253099,0.02479941,88900.0,88891.0,0.38081]
[1766726253296,0.02479941,88900.0,88898.0,0.01128]
[1766726254251,0.02479941,88900.0,88896.0,4.5e-06]
[1766726254252,0.01124872,88899.0,88896.0,4.5e-06]
[1766726254445,0.05624459,88898.0,88896.0,4.5e-06]
[1766726254659,0.05605368,88898.0,88896.0,4.5e-06]
[1766726254810,0.06749232,88899.0,88896.0,4.5e-06]
[1766726255233,0.06749232,88899.0,88888.0,8.01125011]
[1766726255234,0.0112491,88896.0,88888.0,8.0]
[1766726255434,0.01124884,88898.0,88889.0,0.01128]
[1766726255733,0.01124872,88899.0,88889.0,0.02252998]
[1766726256134,0.02479941,88900.0,88890.0,0.01124985]
[1766726256335,0.01124872,88899.0,88889.0,0.02252998]
[1766726256931,0.01124872,88899.0,88888.0,8.06750031]
[1766726256932,0.0112491,88896.0,88890.0,0.01128]
[1766726257134,0.01124897,88897.0,88890.0,0.01128]
[1766726258083,0.06749343,88898.0,88890.0,0.01128]
[1766726258084,0.01124884,88898.0,88890.0,0.01128]
[1766726258285,0.06749355,88898.0,88890.0,0.01128]
[1766726258485,0.01124897,88897.0,88890.0,0.01128]
[1766726259099,0.01124884,88898.0,88888.0,8.01125011]
[1766726259235,0.01124872,88899.0,88889.0,0.39205998]
[1766726259614,0.07887591,88905.0,88899.0,0.000548]
[1766726260046,0.01355082,88900.0,88893.0,0.39205947]
[1766726260868,0.01300282,88900.0,88894.0,0.01124935]
[1766726261069,0.01300282,88900.0,88894.0,0.38081]
[1766726261497,0.01355082,88899.0,88895.0,0.38081]
[1766726261708,0.01300082,88899.0,88895.0,0.38081]
[1766726261907,0.01300082,88899.0,88895.0,0.39205922]
[1766726262135,0.01300082,88899.0,88895.0,0.38081]
[1766726262976,0.01138763,88905.0,88896.0,0.3871791]
[1766726264056,0.01138763,88905.0,88896.0,0.37593]
[1766726264281,0.01138763,88905.0,88896.0,0.3871791]
[1766726264485,0.01138763,88905.0,88897.0,0.01124897]
[1766726264706,0.01138763,88905.0,88896.0,0.3871791]
[1766726264923,0.01138763,88905.0,88898.0,0.01124884]
[1766726265132,0.01138763,88905.0,88897.0,0.38769]
[1766726266107,0.02263559,88905.0,88897.0,0.38769]
[1766726266532,0.01138763,88905.0,88897.0,0.38769]
[1766726266743,0.01138763,88905.0,88897.0,0.39893897]
[1766726266964,0.07138763,88905.0,88897.0,0.39893897]
[1766726267183,0.01124808,88904.0,88897.0,0.387141]
[1766726267911,0.01124821,88903.0,88897.0,0.387141]
[1766726268116,0.01124834,88902.0,88897.0,0.387141]
[1766726268478,0.01124846,88901.0,88897.0,0.387141]
[1766726268812,0.01124834,88902.0,88894.0,0.01128]
[1766726269023,0.01124846,88901.0,88894.0,0.01128]
[1766726269231,0.01124884,88898.0,88889.0,0.38769]
[1766726269471,0.01124872,88899.0,88890.0,0.01128]
[1766726269825,0.08104271,88900.0,88890.0,0.01128]
[1766726269826,0.02479941,88900.0,88890.0,0.02252985]
[1766726270023,0.01355082,88900.0,88891.0,0.01124973]
[1766726270249,0.01355082,88900.0,88892.0,0.0112496]
[1766726270466,0.01355082,88900.0,88891.0,0.01124973]
[1766726270854,0.02479941,88900.0,88889.0,0.02252998]
[1766726271054,0.02479941,88900.0,88890.0,0.01124985]
[1766726271993,0.01355082,88900.0,88891.0,0.06749808]
[1766726272294,0.01355082,88900.0,88893.0,0.01124947]
[1766726273263,0.39598859,88900.0,88890.0,0.01124985]
[1766726273488,0.39598859,88900.0,88891.0,0.01124973]
[1766726273710,0.01124872,88899.0,88890.0,0.01124985]
[1766726274093,0.38474,88900.0,88892.0,0.0112496]
[1766726274294,2.3e-07,88905.0,88903.0,0.44393066]
[1766726274472,2.3e-07,88905.0,88903.0,0.45521066]
[1766726274840,0.40423,88920.0,88912.0,0.01124707]
[1766726275014,0.40423,88920.0,88909.0,0.01124745]
[1766726275159,0.41547606,88920.0,88910.0,0.01124732]
[1766726275398,0.01124619,88919.0,88910.0,0.01124732]
[1766726275601,0.41547606,88920.0,88910.0,0.01124732]
[1766726275802,0.41547606,88920.0,88908.0,0.05623745]
[1766726276256,0.41547606,88920.0,88906.0,0.01124783]
[1766726276257,0.40423,88920.0,88911.0,0.0112472]
[1766726276762,0.41547606,88920.0,88910.0,0.01124732]
[1766726277347,0.40423,88920.0,88911.0,0.0112472]
[1766726278337,0.41547606,88920.0,88910.0,0.01124732]
[1766726278719,0.41547606,88920.0,88910.0,0.0103451]
[1766726279733,0.41547606,88920.0,88908.0,0.01124758]
[1766726279734,0.37305,88919.0,88908.0,0.01124758]
[1766726279935,0.37364,88914.0,88903.0,0.07876926]
[1766726280139,0.01128,88921.0,88903.0,0.01128]
[1766726280140,0.05623601,88911.0,88903.0,0.01128]
[1766726280339,0.37364,88908.0,88904.0,3e-05]
[1766726280560,0.37364,88908.0,88903.0,0.01128]
[1766726281350,0.30726,88906.0,88901.0,0.01128]
[1766726281669,0.21721,88904.0,88892.0,0.06749763]
[1766726281881,0.21721,88904.0,88896.0,0.0112491]
[1766726282048,0.21721,88904.0,88897.0,0.01124897]
[1766726282253,0.21721,88904.0,88896.0,0.0112491]
[1766726282478,0.21721,88904.0,88897.0,0.01124897]
[1766726284094,0.21721,88904.0,88899.0,0.01124872]
[1766726284391,0.21721,88904.0,88898.0,0.01124884]
[1766726284599,0.01124758,88908.0,88899.0,0.39893872]
[1766726284796,0.01124758,88908.0,88899.0,0.38769]
[1766726285552,0.01124707,88912.0,88899.0,0.39893872]
[1766726285761,0.01128,88913.0,88903.0,0.38769]
[1766726286014,0.01124732,88910.0,88903.0,0.38769]
[1766726286243,0.01124745,88909.0,88903.0,0.38769]
[1766726286385,0.01124758,88908.0,88903.0,0.38769]
[1766726286719,0.0112477,88907.0,88903.0,0.38769]
[1766726286930,0.01124758,88908.0,88903.0,0.38769]
[1766726287488,0.0112477,88907.0,88899.0,0.01128]
[1766726287925,0.01124783,88906.0,88899.0,0.01128]
[1766726288092,0.0112477,88907.0,88899.0,0.01128]
[1766726288301,0.01124783,88906.0,88899.0,0.01128]
[1766726288683,0.0112477,88907.0,88899.0,0.39897]
[1766726289088,0.01124783,88906.0,88899.0,0.39897]
[1766726289540,0.01124783,88906.0,88899.0,0.38769]
[1766726289541,0.01124796,88905.0,88899.0,0.38769]
[1766726289716,0.01124796,88905.0,88896.0,0.01128]
[1766726290095,0.01124808,88904.0,88896.0,0.01128]
[1766726290548,0.01124796,88905.0,88896.0,0.01128]
[1766726290749,0.01124808,88904.0,88896.0,0.01128]
[1766726291756,0.01124821,88903.0,88896.0,0.01128]
[1766726291956,0.01124808,88904.0,88896.0,0.01128]
[1766726292540,0.0112491,88896.0,88886.0,0.38769]
[1766726292838,0.01124935,88894.0,88886.0,0.39897]
[1766726293042,0.0112491,88896.0,88886.0,0.39897]
[1766726293465,0.0674957,88895.0,88886.0,0.01128]
[1766726293665,0.0674957,88895.0,88888.0,5.92834453]
[1766726293666,0.01124973,88891.0,88888.0,5.92834453]
[1766726294187,0.01124935,88894.0,88891.0,0.000549]
[1766726294621,0.01124947,88893.0,88888.0,5.92834453]
[1766726294828,0.05250211,88896.0,88888.0,6.37074453]
[1766726295143,0.06375121,88896.0,88888.0,5.92834453]
[1766726295345,0.01124922,88895.0,88889.0,0.4424]
[1766726295787,0.06375121,88896.0,88889.0,0.4424]
[1766726296035,0.0112491,88896.0,88889.0,0.4424]
[1766726296345,0.01124922,88895.0,88889.0,0.4424]
[1766726296552,0.06749555,88895.0,88889.0,0.4424]
[1766726296763,0.01124947,88893.0,88889.0,0.4424]
[1766726297333,0.0112496,88892.0,88889.0,0.4424]
[1766726298163,0.06749806,88892.0,88889.0,0.4424]
[1766726299712,0.0112496,88892.0,88889.0,0.4424]
[1766726299920,0.01124947,88893.0,88889.0,0.4424]
[1766726300223,0.0112496,88892.0,88889.0,0.4424]
[1766726300821,0.05624901,88891.0,88889.0,0.4424]
[1766726301212,0.06749874,88891.0,88888.0,5.92834453]
[1766726302267,0.05624971,88890.0,88888.0,5.92834453]
[1766726303443,0.06752971,88890.0,88888.0,5.92834453]
[1766726306694,0.00814472,88890.0,88888.0,5.92834453]
[1766726306884,0.00759572,88890.0,88888.0,5.92834453]
[1766726309048,0.00759572,88890.0,88888.0,5.92779553]
[1766726309454,0.06384551,88890.0,88888.0,5.92779553]
[1766726310068,0.06384551,88890.0,88888.0,5.90966737]
[1766726310269,0.06384551,88890.0,88888.0,5.39741207]
[1766726310470,0.06384551,88890.0,88888.0,5.37341207]
[1766726311078,0.06384551,88890.0,88888.0,4.51667589]
[1766726311444,0.06384551,88890.0,88888.0,4.10014613]
[1766726311658,0.06384551,88890.0,88888.0,3.12089637]
[1766726311838,0.03377288,88889.0,88888.0,2.98243224]
[1766726312008,0.03377288,88889.0,88888.0,2.66947744]
[1766726312210,0.03377288,88889.0,88888.0,2.45838892]
[1766726312411,0.01556336,88889.0,88888.0,2.41841475]
[1766726312574,0.01089187,88889.0,88888.0,2.33945475]
[1766726313633,0.01089187,88889.0,88888.0,2.27187299]
[1766726313841,0.00759572,88890.0,88888.0,2.15926942]
[1766726314038,0.01884545,88890.0,88888.0,2.15776599]
[1766726314975,0.01884545,88890.0,88888.0,2.15787362]
[1766726316556,0.06749385,88897.0,88888.0,2.15787362]
[1766726316754,0.01124922,88895.0,88888.0,2.15787362]
[1766726317472,0.0863393,88897.0,88888.0,2.15787362]
[1766726317721,0.01124935,88894.0,88888.0,2.15787362]
[1766726318207,0.01884545,88897.0,88888.0,2.15787362]
[1766726318402,0.01124846,88901.0,88894.0,0.00055]
[1766726318606,0.03012545,88899.0,88888.0,2.60027362]
[1766726319149,0.01884545,88899.0,88889.0,0.4424]
[1766726319389,0.01124846,88901.0,88889.0,0.4424]
[1766726319390,0.01124859,88900.0,88889.0,0.4424]
[1766726319589,0.01124872,88899.0,88888.0,2.15787362]
[1766726319928,0.01124872,88899.0,88888.0,2.13444361]
[1766726320237,0.0112491,88896.0,88888.0,2.13444361]
[1766726320666,0.01124922,88895.0,88888.0,2.13444361]
[1766726320855,0.0112491,88896.0,88888.0,2.13444361]
[1766726321380,0.01124935,88894.0,88888.0,2.13444361]
[1766726321788,0.01124947,88893.0,88888.0,2.13444361]
[1766726321944,0.01124973,88891.0,88888.0,2.13444361]
[1766726322760,0.0112496,88892.0,88888.0,2.13444361]
[1766726323654,0.01124973,88891.0,88888.0,2.13444361]
[1766726324528,0.0112496,88892.0,88888.0,2.13444361]
[1766726324737,0.01124935,88894.0,88888.0,2.13444361]
[1766726325031,0.01124973,88891.0,88888.0,2.13444361]
[1766726325234,0.06749891,88891.0,88888.0,2.13444361]
[1766726326216,0.0112491,88896.0,88891.0,0.000549]
[1766726326418,0.01124922,88895.0,88891.0,0.000549]
[1766726326616,0.01124935,88894.0,88891.0,0.000549]
[1766726326821,0.01124922,88895.0,88888.0,2.13444361]
[1766726327959,0.06749582,88895.0,88888.0,2.13444361]
[1766726328120,0.01124947,88893.0,88888.0,2.13444361]
[1766726328527,0.01124935,88894.0,88888.0,2.13444361]
[1766726329251,0.01124922,88895.0,88888.0,2.13444361]
[1766726329815,0.01124947,88893.0,88888.0,2.13444361]
[1766726330164,0.0112496,88892.0,88888.0,2.13444361]
[1766726330891,0.01124973,88891.0,88888.0,2.13444361]
[1766726332348,0.06749891,88891.0,88888.0,2.13444361]
[1766726333527,0.05624971,88890.0,88888.0,2.13444361]
[1766726334415,0.05624971,88890.0,88888.0,1.47506908]
[1766726334611,0.05624971,88890.0,88888.0,1.16271353]
[1766726334840,0.05624971,88890.0,88888.0,0.82355122]
[1766726335059,0.05624971,88890.0,88888.0,0.73345918]
[1766726335260,0.05624971,88890.0,88888.0,0.64345918]
[1766726335439,0.05624971,88890.0,88888.0,0.56347603]
[1766726335643,0.05625056,88888.0,88887.0,1e-08]
[1766726335807,0.01125074,88883.0,88878.0,0.0098679]
[1766726336029,0.06750378,88884.0,88878.0,0.0098679]
[1766726336231,0.01125061,88884.0,88878.0,0.0098679]
[1766726336469,0.01125074,88883.0,88878.0,0.0098679]
[1766726336648,0.01125087,88882.0,88867.0,0.0096787]
[1766726336866,0.01125099,88881.0,88867.0,0.0209587]
[1766726337066,0.08105564,88883.0,88867.0,0.0209587]
[1766726337067,0.01355082,88883.0,88867.0,0.0209587]
[1766726337291,0.01355082,88883.0,88867.0,0.03221147]
[1766726337493,0.01128,88887.0,88883.0,0.001099]
[1766726338009,6.457e-05,88888.0,88875.0,0.01128]
[1766726338505,0.01131468,88888.0,88875.0,0.01128]
[1766726339033,0.01131468,88888.0,88870.0,0.46991]
[1766726339034,0.01125099,88881.0,88870.0,0.46991]
[1766726339207,0.0112515,88877.0,88868.0,0.01128]
[1766726339363,0.01125201,88873.0,88868.0,0.01128]
[1766726339792,0.01125226,88871.0,88868.0,0.01128]
[1766726340134,0.01125289,88866.0,88861.0,0.01128]
[1766726340286,0.0675156,88869.0,88866.0,0.000549]
[1766726340287,0.01125277,88867.0,88866.0,0.000549]
[1766726340636,0.01125264,88868.0,88861.0,0.01128]
[1766726340857,0.01125277,88867.0,88861.0,0.01128]
[1766726341345,0.01125251,88869.0,88867.0,0.000549]
[1766726341751,0.01125264,88868.0,88861.0,0.01128]
[1766726342040,0.01125277,88867.0,88861.0,0.01128]
[1766726342197,0.01125251,88869.0,88861.0,0.01128]
[1766726342399,0.01125251,88869.0,88867.0,0.000549]
[1766726342820,0.01125251,88869.0,88861.0,0.01128]
[1766726343543,0.06751483,88870.0,88861.0,0.01128]
[1766726343744,0.01125239,88870.0,88861.0,0.01128]
[1766726343945,0.01125264,88868.0,88861.0,0.01128]
[1766726344244,0.01125251,88869.0,88861.0,0.01128]
[1766726344623,0.01125264,88868.0,88861.0,0.01128]
[1766726344948,0.01125251,88869.0,88861.0,0.01128]
[1766726345171,0.01125251,88869.0,88868.0,0.000549]
[1766726345358,0.05626174,88871.0,88861.0,0.01128]
[1766726345359,0.067514,88871.0,88861.0,0.01128]
[1766726345568,0.01128,88875.0,88869.0,0.00055]
[1766726345773,0.01128,88881.0,88870.0,0.46991]
[1766726346006,0.01128,88883.0,88870.0,0.46991]
[1766726346215,0.02253074,88883.0,88870.0,0.46991]
[1766726346597,0.01125087,88882.0,88870.0,0.46991]
[1766726347194,0.02253074,88883.0,88870.0,0.46991]
[1766726347195,0.01128,88883.0,88870.0,0.46991]
[1766726347404,0.01128,88883.0,88882.0,0.000549]
[1766726347740,0.01128,88885.0,88870.0,0.46991]
[1766726349462,0.02253049,88885.0,88870.0,0.46991]
[1766726350396,0.01131468,88888.0,88870.0,0.46991]
[1766726350597,0.01125036,88886.0,88870.0,0.46991]
[1766726350918,0.02253023,88887.0,88870.0,0.46991]
[1766726351130,0.02253023,88887.0,88870.0,0.48116239]
[1766726351345,0.01128,88887.0,88870.0,0.48116239]
[1766726351720,0.01128,88887.0,88872.0,0.46991]
[1766726352596,0.01128,88887.0,88880.0,0.00024457]
[1766726355313,0.01128,88887.0,88880.0,5.7e-07]
[1766726355314,0.01355082,88882.0,88880.0,5.7e-07]
[1766726355466,0.06980535,88882.0,88880.0,5.7e-07]
[1766726356289,0.06980535,88882.0,88854.0,0.0004]
[1766726356290,0.01125289,88866.0,88854.0,0.0004]
[1766726356502,0.06751553,88869.0,88866.0,0.000243]
[1766726356742,0.0562637,88868.0,88866.0,0.000243]
[1766726356940,0.0675194,88864.0,88854.0,0.0004]
[1766726357098,0.01125353,88861.0,88854.0,0.0004]
[1766726357449,0.01125327,88863.0,88854.0,0.0004]
[1766726357763,0.0112534,88862.0,88854.0,0.0004]
[1766726358138,0.0110104,88862.0,88854.0,0.0004]
[1766726358332,0.01125353,88861.0,88854.0,0.0004]
[1766726358755,0.01125365,88860.0,88854.0,0.0004]
[1766726358953,0.01125353,88861.0,88854.0,0.0004]
[1766726359157,0.01125378,88859.0,88854.0,0.0004]
[1766726359335,0.01125403,88857.0,88854.0,0.0004]
[1766726359541,0.01125378,88859.0,88857.0,0.00055]
[1766726360164,0.01125378,88859.0,88854.0,0.0004]
[1766726360366,0.01125391,88858.0,88854.0,0.0004]
[1766726360570,0.06752465,88857.0,88854.0,0.0004]
[1766726360771,0.05627123,88856.0,88854.0,0.0004]